bitfinex-derivatives/quotes_BNBF0:USTF0_20250424
["timestamp","ask_amount","ask_price","bid_price","bid_amount"]
[1745498957222,0.27435588,598.88,596.75,0.92070093]
[1745498957422,1.27887129,599.06,596.54,0.29113908]
[1745498957423,0.27435588,598.87,596.76,0.92070093]
[1745498957623,0.27435588,598.86,596.77,0.92070093]
[1745498957823,0.27435588,598.85,596.78,0.92070093]
[1745498958023,0.27435696,598.84,596.79,0.92069817]
[1745498958222,0.27435696,599.05,596.8,0.92069817]
[1745498958422,1.27887129,598.95,596.81,0.92069817]
[1745498958624,0.27435696,598.94,596.82,0.92069817]
[1745498958923,0.27435696,598.93,596.83,0.92069817]
[1745498959118,0.27435696,598.93,596.54,0.29113908]
[1745498959322,0.27435696,598.92,596.55,0.92232232]
[1745498959520,0.27435696,598.92,596.56,0.61477147]
[1745498959724,0.27435696,598.91,596.57,0.30755085]
[1745498959922,0.27435696,598.9,596.58,0.61477147]
[1745498960119,0.27435696,598.89,596.59,0.30755085]
[1745498960320,0.27435696,598.88,596.6,0.61477147]
[1745498960518,0.27435696,598.87,596.61,0.30755085]
[1745498960718,0.27435696,598.86,596.62,0.61477147]
[1745498960922,0.27435696,598.85,596.63,0.30755085]
[1745498961123,0.27435696,598.84,596.64,0.61477147]
[1745498961323,0.27435696,598.84,596.65,0.30755085]
[1745498961625,0.27435696,598.83,596.66,0.61477147]
[1745498961819,0.27435696,598.82,596.67,0.30755085]
[1745498962022,0.27435696,599.03,596.68,0.61477147]
[1745498962222,0.27435696,599.02,596.69,0.30755085]
[1745498962519,0.27435696,599.01,596.7,0.61477147]
[1745498962719,0.27435696,599.01,596.71,0.30755085]
[1745498962922,0.29111594,599.02,596.72,0.61477147]
[1745498963120,0.27447372,599.01,596.73,0.92225856]
[1745498963323,0.27447372,599.01,596.74,0.92225856]
[1745498963524,0.27447372,599.01,596.75,0.92225856]
[1745498963722,0.27447372,599.01,596.76,0.92225856]
[1745498963924,0.27447372,599.01,596.77,0.92225856]
[1745498964126,0.27447372,599.01,596.78,0.92225856]
[1745498964327,0.27447372,599.01,596.63,0.78]
[1745498964328,0.27445571,599.0,596.79,0.61477147]
[1745498964529,0.27445571,599.01,596.8,0.61477147]
[1745498964725,0.27445571,599.0,596.81,0.61477147]
[1745498964922,0.27445571,599.01,596.82,0.61477147]
[1745498965228,0.27445571,599.01,596.83,0.61477147]
[1745498965427,0.29108185,599.0,596.84,0.61477147]
[1745498965625,0.27445571,598.99,596.85,0.61477147]
[1745498965825,0.29108185,599.0,596.86,0.61477147]
[1745498966026,0.27446186,598.99,596.87,0.61477147]
[1745498966226,0.27446186,598.99,596.88,0.61477147]
[1745498966428,0.27446186,598.99,596.89,0.61477147]
[1745498966624,0.27446186,598.99,596.9,0.61477147]
[1745498966931,0.27446186,598.99,596.69,0.29108185]
[1745498967125,0.27446186,598.99,596.7,0.92367161]
[1745498967328,0.27446186,598.99,596.71,0.92367161]
[1745498967529,0.27446186,598.99,596.72,0.92367161]
[1745498967727,0.27446186,598.99,596.73,0.92367161]
[1745498967929,0.27446186,598.99,596.74,0.61617385]
[1745498968128,0.27446186,598.99,596.69,0.29108185]
[1745498968129,0.27446186,598.99,596.75,0.61617385]
[1745498968330,0.27446186,598.98,596.76,0.61617385]
[1745498968626,0.27446186,598.97,596.77,0.61617385]
[1745498968826,0.27446186,598.96,596.78,0.61617385]
[1745498969029,0.27446186,598.95,596.79,0.61617385]
[1745498969224,0.27446186,598.94,596.8,0.61617385]
[1745498969430,0.27446186,598.93,596.81,0.92368045]
[1745498969627,0.27446186,598.92,596.82,0.92368045]
[1745498969826,0.27446186,598.91,596.83,0.92368045]
[1745498970131,0.27446186,598.97,596.84,0.92368045]
[1745498970328,0.27446186,598.96,596.85,0.92368045]
[1745498970531,0.27446186,598.97,596.86,0.92368045]
[1745498970832,0.27446186,598.96,596.87,0.92368045]
[1745498971028,0.27446186,598.97,596.88,0.61617385]
[1745498971232,0.27446186,598.96,596.89,0.61617385]
[1745498971430,0.29108307,598.96,596.9,0.61617385]
[1745498971629,0.27446186,598.95,596.91,0.61617385]
[1745498971829,0.27446186,598.95,596.92,0.61617385]
[1745498972028,0.27446186,598.95,596.93,0.61617385]
[1745498972229,0.29108307,598.96,596.94,0.61723507]
[1745498972435,0.2744745,598.95,596.95,0.61723507]
[1745498972734,0.2744745,598.95,596.96,0.61723507]
[1745498972935,0.2744745,598.95,596.97,0.61723507]
[1745498973130,0.2744745,598.95,596.98,0.61723507]
[1745498973333,0.2744745,598.95,596.99,0.61723507]
[1745498973530,0.2744745,598.95,597.0,0.61723507]
[1745498973731,0.2744745,598.95,597.01,0.61723507]
[1745498973931,0.2744745,598.95,597.02,0.61723507]
[1745498974136,0.2744745,598.95,597.03,0.61723507]
[1745498974437,0.2744745,598.94,597.04,0.61723507]
[1745498974733,0.2744745,598.93,597.05,0.61723507]
[1745498974936,0.2744745,598.93,597.06,0.61723507]
[1745498975136,0.2744745,598.93,597.07,0.61723507]
[1745498975436,0.2744745,598.93,597.08,0.61723507]
[1745498975639,0.2744745,598.93,597.09,0.61723507]
[1745498975843,0.2744745,598.93,596.92,0.916]
[1745498976136,0.2744745,598.93,596.93,0.6177115]
[1745498976332,0.2744745,598.93,596.94,0.6177115]
[1745498976532,0.2744745,598.93,596.95,0.6177115]
[1745498976732,0.2744745,598.93,596.96,0.6177115]
[1745498976930,0.2744745,598.93,596.97,0.6177115]
[1745498977137,1.27887129,599.38,596.98,0.6177115]
[1745498977332,0.27437621,599.37,596.99,0.6177115]
[1745498977536,0.2910283,598.92,597.0,0.6177115]
[1745498977733,0.27437621,598.91,597.01,0.6177115]
[1745498977931,0.27437621,599.39,597.02,0.6177115]
[1745498978136,0.27437621,599.38,597.03,0.6177115]
[1745498978336,1.27887129,599.4,596.92,1.2070283]
[1745498978337,0.27437621,599.37,597.04,0.6177115]
[1745498978538,0.27437621,599.36,597.05,0.6177115]
[1745498978737,0.27437621,599.35,597.06,0.6177115]
[1745498978935,0.27437621,599.34,597.07,0.6177115]
[1745498979133,0.27437621,599.33,597.08,0.6177115]
[1745498979338,0.27437621,599.32,597.09,0.6177115]
[1745498979540,0.27437621,599.31,597.1,0.6177115]
[1745498979738,0.27437621,599.3,597.11,0.6177115]
[1745498979938,0.27437621,599.29,597.12,0.6177115]
[1745498980135,0.27437621,599.28,597.13,0.6177115]
[1745498980335,0.27437621,599.27,597.14,0.6177115]
[1745498980539,0.27437621,599.27,597.15,0.6177115]
[1745498980738,1.27887129,599.4,596.92,0.916]
[1745498980939,1.27887129,599.4,596.93,0.61774482]
[1745498981141,1.27887129,599.3,596.94,0.92517502]
[1745498981340,1.27887129,599.3,596.95,0.61774482]
[1745498981540,0.27441284,599.29,596.96,0.61783139]
[1745498981741,0.56546061,599.29,596.97,0.61783139]
[1745498981942,0.27441284,599.28,596.98,0.3074302]
[1745498982140,0.27441284,599.28,596.99,0.61783139]
[1745498982341,0.27441284,599.27,597.0,0.3074302]
[1745498982543,0.27441284,599.26,596.94,0.3074302]
[1745498982737,0.29104777,599.29,596.95,0.92539785]
[1745498982738,0.27441284,599.25,596.95,0.92539785]
[1745498982938,0.27441284,599.24,596.96,0.92539785]
[1745498983137,0.27441284,599.23,596.97,0.92539785]
[1745498983444,1.27887129,598.65,596.98,0.61796765]
[1745498983639,1.27887129,598.65,596.99,0.61796765]
[1745498983839,0.2743962,598.64,597.0,0.61796765]
[1745498984041,0.2743962,598.64,596.94,0.29106116]
[1745498984240,0.2743962,598.64,597.01,0.784]
[1745498985344,1.27887129,598.65,597.01,0.784]
[1745498985543,0.27439663,598.64,597.01,0.784]
[1745498985737,0.27439663,598.95,597.02,0.61831685]
[1745498985938,0.27439663,598.94,597.01,0.784]
[1745498986139,0.27439663,598.93,597.02,0.61831327]
[1745498986343,0.27439663,598.92,597.01,0.784]
[1745498986539,0.27439663,598.91,597.02,0.6184477]
[1745498986745,0.27439663,598.9,597.01,0.784]
[1745498987046,0.27439663,598.89,597.02,0.61845072]
[1745498987346,0.27439663,598.88,597.03,0.6185811]
[1745498987646,0.27439663,598.87,597.01,0.784]
[1745498987847,0.27439663,598.86,597.02,0.6185959]
[1745498988146,0.27439663,598.85,597.01,0.784]
[1745498988347,0.27439663,598.84,597.02,0.61859723]
[1745498988647,0.29109525,598.92,597.03,0.61859723]
[1745498988648,1.27887129,598.9,597.03,0.61859723]
[1745498988947,0.27439695,598.89,597.01,0.784]
[1745498989143,0.27439695,598.88,597.02,0.61877878]
[1745498989348,0.27439695,598.87,597.03,0.61877878]
[1745498989547,0.27439695,598.86,597.04,0.61877878]
[1745498989747,0.27439695,598.85,597.05,0.61877878]
[1745498989950,0.27439695,598.85,597.06,0.61877878]
[1745498990145,0.27439695,598.84,597.07,0.61877878]
[1745498990449,0.27439695,598.83,597.08,0.61877878]
[1745498990746,0.27439695,598.82,597.09,0.61877878]
[1745498990950,1.27887129,598.82,597.01,0.784]
[1745498991151,1.27887129,598.82,597.02,0.61886729]
[1745498991352,0.27440428,598.81,597.03,0.61886729]
[1745498991552,0.27440428,598.8,597.04,0.61886729]
[1745498991745,0.27440428,598.79,597.05,0.61886729]
[1745498991947,0.27440428,598.78,597.04,0.834]
[1745498992352,1.27887129,598.82,597.04,0.834]
[1745498992554,0.29113665,598.77,597.04,0.834]
[1745498993054,0.27435842,598.76,597.04,0.834]
[1745498993353,0.27435842,598.75,597.04,0.834]
[1745498993555,0.27435842,598.74,597.04,1.482]
[1745498993754,0.27435842,598.73,597.04,1.482]
[1745498993950,0.27435842,598.72,597.04,1.482]
[1745498994152,1.27887129,598.68,597.04,1.482]
[1745498994353,0.27435842,598.67,597.04,1.482]
[1745498994555,0.27435842,598.66,597.04,1.482]
[1745498994859,0.27435842,598.65,597.04,1.482]
[1745498995049,0.27435842,598.64,597.04,1.482]
[1745498995254,0.27435842,598.67,597.04,1.482]
[1745498995554,0.29114152,598.63,597.04,1.482]
[1745498995755,0.27431913,598.62,597.04,1.482]
[1745498996949,0.29114152,598.63,597.04,1.482]
[1745498997152,0.27432793,598.62,597.04,1.482]
[1745498998151,0.27432793,598.62,597.04,2.141]
[1745498999860,0.27432793,598.61,597.04,2.141]
[1745499000050,0.27432793,598.6,597.04,2.141]
[1745499000255,0.27426768,598.59,597.04,2.141]
[1745499000451,0.27426768,598.62,597.04,2.141]
[1745499001354,0.27426768,598.61,597.04,2.141]
[1745499001555,0.27426768,598.6,597.04,2.141]
[1745499004659,0.56542625,598.59,597.04,2.141]
[1745499004861,0.27426768,598.58,597.04,2.141]
[1745499006062,0.27417777,598.57,597.04,2.141]
[1745499006358,0.27417777,598.58,597.04,2.141]
[1745499006562,0.27417777,598.57,597.04,2.141]
[1745499006761,0.27417777,598.58,597.04,2.141]
[1745499006962,0.29115857,598.59,597.04,2.141]
[1745499007164,0.27417362,598.58,597.04,2.141]
[1745499007858,0.27417362,598.58,597.04,1.482]
[1745499009564,0.27417362,598.58,596.86,0.29115857]
[1745499009768,0.27417362,598.58,596.87,0.61926371]
[1745499009965,0.27417362,598.58,596.88,0.61926371]
[1745499010161,0.27417362,598.58,596.89,0.61926371]
[1745499010365,0.27417362,598.58,596.12,1.06343516]
[1745499010366,0.27417362,598.58,596.9,0.61926371]
[1745499010566,0.56532123,598.57,596.91,0.61926371]
[1745499010769,0.27417362,598.56,596.92,0.61926371]
[1745499010962,0.27417362,598.56,596.93,0.61926371]
[1745499011165,0.27417362,598.56,596.94,0.61926371]
[1745499011361,0.27417362,598.56,596.95,0.61926371]
[1745499011565,0.27417362,598.56,596.87,0.29114761]
[1745499011766,0.27417362,598.56,596.88,0.61937281]
[1745499011963,0.27417362,598.56,596.89,0.61937281]
[1745499012168,0.29114761,598.57,596.9,0.61937281]
[1745499012369,0.27418765,598.55,596.91,0.61937281]
[1745499012566,0.27418765,598.54,596.87,0.29114761]
[1745499012769,0.27418765,598.56,596.87,0.29114761]
[1745499013071,0.27418765,598.55,596.24,1.06343516]
[1745499013271,0.27418765,598.56,596.8,0.29125848]
[1745499013474,0.56544613,598.55,596.81,0.61944269]
[1745499013674,0.27418765,598.54,596.82,0.61944269]
[1745499013874,0.27418765,598.54,596.83,0.61944269]
[1745499014176,0.27418765,598.54,596.84,0.61944269]
[1745499014472,0.27418765,598.54,596.8,0.29118659]
[1745499014676,0.27418765,598.54,596.81,0.61922293]
[1745499014974,0.27418765,598.54,596.82,0.61922293]
[1745499015175,0.27418765,598.54,596.83,0.61922293]
[1745499015375,0.2740926,598.53,596.84,0.61922293]
[1745499015569,0.2740926,598.54,596.8,0.29118659]
[1745499015768,0.2740926,598.53,596.81,0.61914915]
[1745499016071,0.2740926,598.52,596.82,0.61914915]
[1745499016272,0.2740926,598.52,596.83,0.61914915]
[1745499016473,0.2740926,598.51,596.84,0.61914915]
[1745499016673,0.2740926,598.51,596.85,0.61914915]
[1745499016875,0.2740926,598.51,596.8,0.2911744]
[1745499017076,0.2740926,598.51,596.81,0.61905908]
[1745499017276,0.2740926,598.51,596.82,0.61905908]
[1745499017470,0.2740926,598.51,596.83,0.61905908]
[1745499017674,0.2740926,598.51,596.84,0.61905908]
[1745499017872,0.2740926,598.51,596.85,0.61905908]
[1745499018075,0.2740926,598.51,596.86,0.61899651]
[1745499018275,0.2740926,598.51,596.87,0.61899651]
[1745499018471,0.27418466,598.5,596.88,0.61899651]
[1745499018676,0.27418466,598.51,596.89,0.61899651]
[1745499018872,0.27418466,598.5,596.9,0.61899651]
[1745499019075,0.27418466,598.51,596.91,0.61899651]
[1745499019273,0.27418466,598.5,596.17,0.907]
[1745499019476,1.27887129,599.42,596.84,0.29109281]
[1745499019477,0.29109281,598.49,596.84,0.29109281]
[1745499019673,0.27418466,598.48,596.85,0.61892996]
[1745499019878,0.27418466,598.48,596.86,0.61892996]
[1745499020074,0.27418466,598.48,596.87,0.61892996]
[1745499020275,0.27418466,598.48,596.88,0.61892996]
[1745499020573,0.27418466,598.48,596.89,0.61892996]
[1745499020877,0.27418466,598.48,596.9,0.61892996]
[1745499021074,0.27418466,598.48,596.91,0.61892996]
[1745499021275,0.27418466,598.48,596.86,0.29110133]
[1745499021475,0.29109281,598.49,596.87,0.61891532]
[1745499021677,0.27420733,598.48,596.88,0.61891532]
[1745499021874,0.27420733,598.48,596.89,0.61891532]
[1745499022077,0.27420733,598.48,596.9,0.61891532]
[1745499022278,0.27420733,598.48,596.91,0.61891532]
[1745499022476,0.27420733,598.72,596.3,1.06343516]
[1745499022676,0.29110012,598.47,596.87,0.29110012]
[1745499022878,0.27420733,598.46,596.88,0.6188629]
[1745499023077,1.27887129,598.73,596.89,0.6188629]
[1745499023380,1.27887129,598.73,596.3,1.06343516]
[1745499023381,0.27424095,598.72,596.9,0.6188629]
[1745499023580,0.27424095,598.71,596.91,0.6188629]
[1745499023781,0.27424095,598.7,596.88,0.29118537]
[1745499024081,0.27424095,598.69,596.89,0.61884045]
[1745499024281,0.27424095,598.68,596.9,0.61884045]
[1745499024475,0.27424095,598.68,596.91,0.61884045]
[1745499024677,0.27424187,598.67,596.88,0.29118537]
[1745499024877,0.27424187,598.66,596.89,0.61880715]
[1745499025079,0.27424187,598.65,596.9,0.61880715]
[1745499025280,0.27424187,598.64,596.91,0.61880715]
[1745499025480,0.27424187,598.63,596.88,0.29118902]
[1745499025681,0.27424187,598.62,596.89,0.61879139]
[1745499025881,0.27424187,598.61,596.9,0.61879139]
[1745499026081,0.29118902,598.65,596.88,0.29118902]
[1745499026281,0.29118902,598.65,596.89,0.61879179]
[1745499026282,0.27422976,598.6,596.89,0.61879179]
[1745499026578,0.27422976,598.59,596.9,0.61879179]
[1745499026779,0.27422976,598.58,596.88,0.29118902]
[1745499026977,0.27422976,598.64,596.39,1.06343516]
[1745499027283,0.27422976,598.64,596.81,0.29120973]
[1745499027581,0.27422976,598.64,596.39,1.06343516]
[1745499027779,0.27417862,598.63,596.81,0.29127067]
[1745499027977,0.27417862,598.64,596.39,1.06343516]
[1745499028178,0.27417862,598.63,596.4,0.92641768]
[1745499028378,0.27417862,598.69,596.81,0.29127067]
[1745499028582,0.29127189,598.63,596.39,1.06343516]
[1745499028882,0.27417862,598.62,596.4,0.92630467]
[1745499029083,0.27417862,598.62,596.41,0.92630467]
[1745499029283,0.27418699,598.61,596.42,0.92630866]
[1745499029483,0.27418699,598.62,596.43,0.92630866]
[1745499029681,0.27418699,598.61,596.44,0.92630866]
[1745499029885,0.27418699,598.62,596.45,0.92630866]
[1745499030183,0.27418699,598.61,596.46,0.92630866]
[1745499030384,0.27418699,598.62,596.47,0.92630866]
[1745499030583,0.27418699,598.61,596.48,0.61866084]
[1745499030781,0.29127189,598.63,596.49,0.61866084]
[1745499030978,0.27412359,598.62,596.5,0.92630473]
[1745499031180,0.27412359,598.61,596.51,0.92630473]
[1745499031383,0.27412359,598.6,596.52,0.92630473]
[1745499031579,0.27412359,598.59,596.53,0.92630473]
[1745499031888,0.27412359,598.58,596.54,0.92630473]
[1745499032186,0.27412359,598.57,596.55,0.92630473]
[1745499032481,0.29125482,598.61,596.46,0.29125482]
[1745499032482,0.27412359,598.56,596.56,0.92630473]
[1745499032683,0.27412359,598.55,596.57,0.92630473]
[1745499032884,0.27412359,598.54,596.58,0.92630473]
[1745499033083,0.27418226,598.53,596.59,0.92631012]
[1745499033386,0.27418226,598.52,596.6,0.92631012]
[1745499033586,0.27418226,598.51,596.61,0.92631012]
[1745499033781,0.27418226,598.5,596.62,0.92631012]
[1745499033986,0.27418226,598.49,596.63,0.92631012]
[1745499034187,0.27418226,598.48,596.64,0.92631012]
[1745499034389,0.27418226,598.47,596.65,0.92631012]
[1745499034580,1.27887129,598.84,596.65,0.92631012]
[1745499034581,0.27418226,598.46,596.66,0.61866084]
[1745499034785,0.27418226,598.45,596.67,0.92631012]
[1745499034985,0.27418226,598.44,596.68,0.92631012]
[1745499035182,1.27887129,598.25,596.69,0.92631012]
[1745499035386,1.27887129,598.25,596.7,0.61866084]
[1745499035586,0.27418226,598.24,596.71,0.92631012]
[1745499035886,0.27418226,598.23,596.72,0.92631012]
[1745499036186,0.27418226,598.22,596.73,0.92631012]
[1745499036482,0.27418226,598.21,596.74,0.92631012]
[1745499036683,0.27418226,598.2,596.75,0.92631012]
[1745499036986,0.27418226,598.19,596.76,0.92631012]
[1745499037186,0.27418226,598.18,596.77,0.92599077]
[1745499037386,0.27418226,598.17,596.78,0.92599077]
[1745499037587,0.27418226,598.16,596.79,0.92599077]
[1745499037888,0.27418226,598.15,596.8,0.92599077]
[1745499038087,0.27418226,598.14,596.81,0.92599077]
[1745499038282,0.27418226,598.13,596.82,0.92599077]
[1745499038486,0.27418226,598.15,596.83,0.92599077]
[1745499038688,0.27418226,598.14,596.84,0.30764928]
[1745499038884,0.27418226,598.13,596.64,0.30764928]
[1745499039080,0.27418226,598.13,596.85,0.30764928]
[1745499039281,0.27418226,598.12,596.86,0.30764928]
[1745499039486,0.27418226,598.11,596.64,0.30764928]
[1745499039683,0.27418226,598.15,596.65,0.92628298]
[1745499039888,0.27418226,598.14,596.66,0.92628298]
[1745499040085,0.27418226,598.13,596.67,0.92628298]
[1745499040287,0.27418226,598.12,596.68,0.92628249]
[1745499040489,0.27418226,598.11,596.69,0.92628249]
[1745499040686,0.27418226,598.14,596.7,0.92628249]
[1745499040890,0.27418226,598.13,596.71,0.92628249]
[1745499041092,0.27418226,598.12,596.72,0.92628249]
[1745499041289,0.27418226,598.12,596.73,0.92628249]
[1745499041490,0.27418226,598.11,596.74,0.92628249]
[1745499041787,0.27418226,598.11,596.64,0.29129749]
[1745499041788,0.27418226,598.1,596.75,0.92628249]
[1745499041992,0.27418226,598.14,596.76,0.92628249]
[1745499042194,0.27418226,598.13,596.77,0.92628249]
[1745499042492,0.27418226,598.13,596.64,0.29129749]
[1745499042493,0.27418226,598.12,596.78,0.92628249]
[1745499042787,0.27418226,598.11,596.79,0.92628249]
[1745499042991,0.27418226,598.19,596.8,0.92628249]
[1745499043191,0.27418226,598.18,596.81,0.92628249]
[1745499043391,0.27418226,598.19,596.82,0.92628249]
[1745499043587,0.27418226,598.18,596.83,0.92628249]
[1745499043793,0.27418226,598.19,596.84,0.92628249]
[1745499043986,0.27418226,598.18,596.85,0.92628249]
[1745499044186,0.27418226,598.18,596.86,0.61863321]
[1745499044391,0.27418226,598.17,596.87,0.30764928]
[1745499044591,0.27418226,598.23,596.88,0.61863321]
[1745499044790,0.27417332,598.22,596.89,0.30757384]
[1745499044987,0.27417332,598.23,596.9,0.61863321]
[1745499045293,0.27417332,598.22,596.91,0.30757384]
[1745499045493,0.27417332,598.23,596.92,0.61863321]
[1745499045694,0.27417332,598.22,596.92,0.61863321]
[1745499045893,0.27417332,598.23,596.93,0.61863321]
[1745499046189,1.27887129,598.24,596.52,1.06343516]
[1745499046393,0.27416199,598.23,596.53,1.99018873]
[1745499046594,0.27416199,598.38,596.54,0.92675357]
[1745499046795,0.2912402,598.24,596.78,0.2912402]
[1745499046994,0.27416199,598.23,596.79,0.92675357]
[1745499047193,0.27416199,598.23,596.8,0.92675357]
[1745499047495,0.27416199,598.22,596.81,0.92675357]
[1745499047695,0.29123776,598.24,596.82,0.92675357]
[1745499047887,0.27416113,598.23,596.83,0.92675368]
[1745499048087,0.27416113,598.22,596.84,0.92675368]
[1745499048295,0.27416113,598.21,596.85,0.92675368]
[1745499048495,0.27416113,598.2,596.86,0.92675368]
[1745499048695,0.27416113,598.23,596.87,0.92675368]
[1745499048995,0.27416113,598.22,596.88,0.92675368]
[1745499049191,0.27416113,598.21,596.89,0.92675368]
[1745499049395,0.27416113,598.21,596.9,0.61917742]
[1745499049696,0.27416113,598.2,596.91,0.30757626]
[1745499049990,0.29123045,598.24,596.91,0.30757626]
[1745499049991,0.27416113,598.19,596.92,0.61917742]
[1745499050194,0.27416113,598.18,596.93,0.30757626]
[1745499050495,0.27416113,598.17,596.94,0.61917742]
[1745499050795,0.27416113,598.16,596.95,0.30757626]
[1745499050996,0.27417566,598.15,596.96,0.92675398]
[1745499051194,0.27417566,598.14,596.97,0.92675398]
[1745499051496,0.27417566,598.13,596.98,0.61990135]
[1745499051697,0.27417566,598.12,596.83,0.29123045]
[1745499051892,0.27417566,598.23,596.84,0.92747652]
[1745499052095,0.27417566,598.11,596.85,0.61990095]
[1745499052298,0.27417566,598.23,596.86,0.30757557]
[1745499052493,0.29124751,598.24,596.87,0.61990095]
[1745499052698,0.27418748,598.23,596.88,0.9274768]
[1745499052894,0.27418748,598.22,596.89,0.9274768]
[1745499053100,0.27418748,598.21,596.9,0.9274768]
[1745499053300,0.27418748,598.2,596.91,0.9274768]
[1745499053501,0.27418748,598.19,596.92,0.9274768]
[1745499053697,0.27418748,598.23,596.93,0.9274768]
[1745499053899,0.27418748,598.22,596.94,0.9274768]
[1745499054093,0.27418748,598.21,596.95,0.9274768]
[1745499054298,0.27418748,598.2,596.96,0.61990095]
[1745499054496,0.27418748,598.19,596.96,0.61990095]
[1745499054698,0.27418748,598.18,596.97,0.92747717]
[1745499054900,0.27418748,598.17,596.98,0.61990095]
[1745499055100,0.27418748,598.16,596.84,0.29124751]
[1745499055301,0.27418748,598.23,596.85,0.92761078]
[1745499055503,0.27418748,598.23,596.33,0.68094965]
[1745499055504,0.27418748,598.22,596.86,0.92761078]
[1745499055801,0.27413584,598.21,596.87,0.92761142]
[1745499055997,0.27413584,598.21,596.88,0.92761142]
[1745499056302,0.27413584,598.2,596.89,0.92761142]
[1745499056502,0.27413584,598.19,596.9,0.92761142]
[1745499056798,0.27413584,598.18,596.91,0.92761142]
[1745499057002,0.27413584,598.17,596.92,0.92761142]
[1745499057202,0.27413584,598.16,596.93,0.92761142]
[1745499057403,0.27413893,598.15,596.94,0.92761351]
[1745499057703,0.27413893,598.14,596.95,0.92761351]
[1745499057902,0.27413893,598.13,596.96,0.92761351]
[1745499058100,0.27413893,598.23,596.97,0.92761351]
[1745499058298,0.27413893,598.22,596.98,0.62003456]
[1745499058502,0.27413893,598.21,596.99,0.62003456]
[1745499058701,0.27413893,598.21,596.86,0.29123167]
[1745499058904,0.27413893,598.2,596.87,0.92799907]
[1745499059204,0.27413893,598.19,596.88,0.92799907]
[1745499059405,0.27413893,598.18,596.89,0.92799907]
[1745499059607,0.27413893,598.17,596.9,0.92799907]
[1745499059806,0.27413893,598.16,596.91,0.92799907]
[1745499060102,0.27413893,598.15,596.92,0.92799907]
[1745499060306,0.27413893,598.22,596.93,0.92799907]
[1745499060505,0.27413893,598.21,596.94,0.92799907]
[1745499060705,0.27413893,598.2,596.95,0.92799907]
[1745499060907,0.27413893,598.19,596.96,0.62041837]
[1745499061103,0.27413893,598.18,596.86,0.29123167]
[1745499061306,0.27413893,598.17,596.87,0.92816162]
[1745499061608,0.27410774,598.16,596.88,0.92816179]
[1745499061804,0.27410774,598.15,596.89,0.92816179]
[1745499061999,0.27410774,598.14,596.9,0.92816179]
[1745499062206,0.27410774,598.14,596.91,0.62056485]
[1745499062402,0.27410774,598.13,596.92,0.92816179]
[1745499062605,0.27410774,598.16,596.93,0.92816179]
[1745499062806,0.27410774,598.15,596.94,0.92816179]
[1745499063012,1.27887129,598.19,596.95,0.62056485]
[1745499063205,0.27409044,598.18,596.96,0.92812981]
[1745499063402,0.27409044,598.18,596.97,0.92812981]
[1745499063602,0.27409044,598.17,596.98,0.92812981]
[1745499063803,1.27887129,598.19,596.99,0.92812981]
[1745499063804,0.27409044,598.18,596.99,0.92812981]
[1745499064008,0.27409044,598.17,597.0,0.62056485]
[1745499064309,0.27409044,598.16,597.01,0.62056485]
[1745499064610,0.27409044,598.15,596.84,0.29124751]
[1745499064808,0.27409044,598.14,596.85,0.92810948]
[1745499065009,0.27409044,598.19,596.86,0.92810948]
[1745499065206,0.27409044,598.13,596.87,0.92810948]
[1745499065404,0.27409044,598.12,596.88,0.92810948]
[1745499065605,0.27409044,598.19,596.89,0.62052454]
[1745499065807,0.27409044,598.19,596.9,0.92810948]
[1745499066109,0.27409044,598.19,596.91,0.92810948]
[1745499066310,0.27409044,598.19,596.92,0.62052454]
[1745499066505,0.27409044,598.19,596.93,0.62052454]
[1745499066706,0.27409044,598.19,596.94,0.62052454]
[1745499066907,0.27409044,598.19,596.84,0.29124751]
[1745499066908,0.27409044,598.19,596.95,0.62052454]
[1745499067107,0.27409044,598.19,596.96,0.62052454]
[1745499067310,0.27409044,598.19,596.84,0.29124751]
[1745499067311,0.27409044,598.19,596.97,0.62052454]
[1745499067509,0.27409044,598.34,596.98,0.62052454]
[1745499067806,0.29123289,598.2,596.99,0.62052454]
[1745499068010,0.27409044,598.19,597.0,0.62052454]
[1745499068305,1.27887129,598.35,596.84,0.29123289]
[1745499068306,0.27409044,598.18,596.84,0.29123289]
[1745499068511,0.27409044,598.17,596.85,0.92810027]
[1745499068711,0.27409044,598.34,596.86,0.92810027]
[1745499068913,0.27409044,598.33,596.87,0.92810027]
[1745499069114,1.27887129,598.35,596.88,0.62052105]
[1745499069313,0.29124507,598.33,596.89,0.62052105]
[1745499069507,0.29124507,598.33,596.9,0.62052105]
[1745499069710,0.29124507,598.33,596.91,0.62052105]
[1745499069909,0.27409404,598.32,596.92,0.62052105]
[1745499070112,0.27409404,598.32,596.93,0.62052105]
[1745499070312,0.27409404,598.32,596.94,0.62052105]
[1745499070513,0.29123776,598.31,596.95,0.62052105]
[1745499070810,0.27409404,598.3,596.96,0.62052105]
[1745499071113,0.29123776,598.31,596.97,0.62052105]
[1745499071314,0.27410469,598.3,596.98,0.62052105]
[1745499071509,0.27410469,598.3,596.99,0.62052105]
[1745499071714,0.27410469,598.3,597.0,0.62052105]
[1745499071909,0.27410469,598.3,597.01,0.62052105]